[Event "Late-Titled-Tuesday-Blitz-March-12-2024"]
[Site "Chess.com"]
[Date "2024.03.12"]
[Round "8"]
[White "Byniolus"]
[Black "Machidon"]
[Result "0-1"]
[WhiteElo "2759"]
[BlackElo "2518"]
[TimeControl "180+1"]
[EndTime "15:27:33 PDT"]
[Termination "Machidon won on time"]

1. g3 {[%clk 0:03:00.9]} 1... d5 {[%clk 0:02:59.2]} 2. d3 {[%clk 0:03:01.3]}
2... e5 {[%clk 0:02:58.5]} 3. b3 {[%clk 0:02:58.3]} 3... c6 {[%clk 0:02:57.7]}
4. a3 {[%clk 0:02:57.8]} 4... Bd6 {[%clk 0:02:57.9]} 5. e3 {[%clk 0:02:58.2]}
5... Nf6 {[%clk 0:02:58.4]} 6. c3 {[%clk 0:02:58.7]} 6... O-O {[%clk 0:02:57.5]}
7. f3 {[%clk 0:02:59.2]} 7... Re8 {[%clk 0:02:54.7]} 8. Ne2 {[%clk 0:02:57.4]}
8... e4 {[%clk 0:02:48.7]} 9. dxe4 {[%clk 0:02:58.3]} 9... dxe4 {[%clk
0:02:48.8]} 10. f4 {[%clk 0:02:58.4]} 10... a5 {[%clk 0:02:48.4]} 11. h3 {[%clk
0:02:55.6]} 11... a4 {[%clk 0:02:47.2]} 12. Nd2 {[%clk 0:02:39.1]} 12... axb3
{[%clk 0:02:46]} 13. Nxb3 {[%clk 0:02:38.1]} 13... Qe7 {[%clk 0:02:39.1]} 14. a4
{[%clk 0:02:32]} 14... Nbd7 {[%clk 0:02:31]} 15. Bg2 {[%clk 0:02:25]} 15... Nb6
{[%clk 0:02:30.2]} 16. a5 {[%clk 0:02:15.6]} 16... Nc4 {[%clk 0:02:29]} 17. O-O
{[%clk 0:02:15.1]} 17... Bc7 {[%clk 0:01:53.2]} 18. Ned4 {[%clk 0:01:53.4]}
18... Nd5 {[%clk 0:01:45.6]} 19. Qe2 {[%clk 0:01:40.3]} 19... Nxa5 {[%clk
0:01:45.3]} 20. Ba3 {[%clk 0:01:36.3]} 20... Qf6 {[%clk 0:01:43.7]} 21. c4
{[%clk 0:01:25.9]} 21... Nxe3 {[%clk 0:00:58.7]} 22. Qxe3 {[%clk 0:01:18.8]}
22... Nxc4 {[%clk 0:00:58.8]} 23. Qc1 {[%clk 0:01:09.1]} 23... Nxa3 {[%clk
0:00:58.3]} 24. Rxa3 {[%clk 0:01:10]} 24... Rxa3 {[%clk 0:00:58.2]} 25. Qxa3
{[%clk 0:01:10.9]} 25... Bb6 {[%clk 0:00:57.6]} 26. Qb4 {[%clk 0:01:03]} 26...
c5 {[%clk 0:00:47.7]} 27. Nxc5 {[%clk 0:01:00.9]} 27... Qd6 {[%clk 0:00:41.2]}
28. Ndb3 {[%clk 0:00:57.4]} 28... Be6 {[%clk 0:00:38.2]} 29. Kh2 {[%clk
0:00:41.7]} 29... Bxb3 {[%clk 0:00:38.2]} 30. Qb5 {[%clk 0:00:28.1]} 30... Bxc5
{[%clk 0:00:23]} 31. Qxe8+ {[%clk 0:00:26.9]} 31... Qf8 {[%clk 0:00:23.7]} 32.
Qxf8+ {[%clk 0:00:21.1]} 32... Bxf8 {[%clk 0:00:24.6]} 33. Bxe4 {[%clk
0:00:21.6]} 33... b5 {[%clk 0:00:19.8]} 34. Ra1 {[%clk 0:00:17.9]} 34... g6
{[%clk 0:00:17.3]} 35. Ra8 {[%clk 0:00:16.7]} 35... Kg7 {[%clk 0:00:17.5]} 36.
Rd8 {[%clk 0:00:15.4]} 36... Be7 {[%clk 0:00:16.8]} 37. Rd7 {[%clk 0:00:15]}
37... Kf8 {[%clk 0:00:16.7]} 38. Bd5 {[%clk 0:00:13.9]} 38... Bc2 {[%clk
0:00:12.9]} 39. Rb7 {[%clk 0:00:12.9]} 39... b4 {[%clk 0:00:13.3]} 40. Kg2
{[%clk 0:00:11]} 40... h5 {[%clk 0:00:10.6]} 41. g4 {[%clk 0:00:10]} 41... hxg4
{[%clk 0:00:10.4]} 42. hxg4 {[%clk 0:00:10.9]} 42... Bd1 {[%clk 0:00:07]} 43.
Kg3 {[%clk 0:00:07.3]} 43... Be2 {[%clk 0:00:07.1]} 44. f5 {[%clk 0:00:05.5]}
44... gxf5 {[%clk 0:00:06.3]} 45. gxf5 {[%clk 0:00:06.4]} 45... f6 {[%clk
0:00:05.1]} 46. Kh4 {[%clk 0:00:03.6]} 46... Bd1 {[%clk 0:00:03.8]} 47. Be6
{[%clk 0:00:03.1]} 47... Be2 {[%clk 0:00:03.8]} 48. Rb8+ {[%clk 0:00:01.9]}
48... Kg7 {[%clk 0:00:04.4]} 49. Rg8+ {[%clk 0:00:01.2]} 49... Kh7 {[%clk
0:00:05]} 0-1

[Event "Late-Titled-Tuesday-Blitz-March-12-2024"]
[Site "Chess.com"]
[Date "2024.03.12"]
[Round "8"]
[White "m_ezat"]
[Black "Roedor"]
[Result "1/2-1/2"]
[WhiteElo "2621"]
[BlackElo "2275"]
[TimeControl "180+1"]
[EndTime "15:27:33 PDT"]
[Termination "Game drawn - insufficient material"]

1. d3 {[%clk 0:02:55.1]} 1... g6 {[%clk 0:02:59.5]} 2. g3 {[%clk 0:02:52.8]}
2... Bg7 {[%clk 0:02:59.8]} 3. Bg2 {[%clk 0:02:53.7]} 3... Nf6 {[%clk
0:02:58.2]} 4. Nf3 {[%clk 0:02:34.1]} 4... O-O {[%clk 0:02:57.6]} 5. O-O {[%clk
0:02:34]} 5... c5 {[%clk 0:02:57.2]} 6. Nbd2 {[%clk 0:02:15.7]} 6... Nc6 {[%clk
0:02:55.5]} 7. e4 {[%clk 0:02:16.6]} 7... d6 {[%clk 0:02:55.6]} 8. Re1 {[%clk
0:02:15.8]} 8... e5 {[%clk 0:02:55.2]} 9. c3 {[%clk 0:02:15.4]} 9... Rb8 {[%clk
0:02:53.1]} 10. a4 {[%clk 0:02:14.6]} 10... h6 {[%clk 0:02:51.5]} 11. Nc4 {[%clk
0:02:13.3]} 11... Be6 {[%clk 0:02:49.8]} 12. Ne3 {[%clk 0:02:04.4]} 12... a6
{[%clk 0:02:48.6]} 13. d4 {[%clk 0:01:39.8]} 13... cxd4 {[%clk 0:02:44.3]} 14.
cxd4 {[%clk 0:01:40.7]} 14... exd4 {[%clk 0:02:44.9]} 15. Nxd4 {[%clk
0:01:40.5]} 15... Nxd4 {[%clk 0:02:41.6]} 16. Qxd4 {[%clk 0:01:40.4]} 16... Ng4
{[%clk 0:02:06.8]} 17. Qd3 {[%clk 0:01:26.4]} 17... Ne5 {[%clk 0:02:05.8]} 18.
Qd1 {[%clk 0:01:25.6]} 18... Qb6 {[%clk 0:01:55.5]} 19. a5 {[%clk 0:01:22]}
19... Qc5 {[%clk 0:01:53.8]} 20. h3 {[%clk 0:01:15.5]} 20... Rfd8 {[%clk
0:01:50]} 21. Ra3 {[%clk 0:01:13.5]} 21... Nc4 {[%clk 0:01:39.4]} 22. Nxc4
{[%clk 0:00:33.4]} 22... Bxc4 {[%clk 0:01:40.3]} 23. Be3 {[%clk 0:00:33.2]}
23... Qb4 {[%clk 0:01:34.4]} 24. Bd4 {[%clk 0:00:31.7]} 24... d5 {[%clk
0:01:24.3]} 25. Bxg7 {[%clk 0:00:31]} 25... Kxg7 {[%clk 0:01:25.2]} 26. Ra4
{[%clk 0:00:30.8]} 26... Qxb2 {[%clk 0:01:23]} 27. exd5 {[%clk 0:00:31.1]} 27...
Bb3 {[%clk 0:01:14.1]} 28. Rb4 {[%clk 0:00:29.7]} 28... Bxd1 {[%clk 0:01:07.8]}
29. Rxb2 {[%clk 0:00:29.8]} 29... Ba4 {[%clk 0:01:07.3]} 30. Re7 {[%clk
0:00:30.2]} 30... Bb5 {[%clk 0:01:07]} 31. Rc2 {[%clk 0:00:30.4]} 31... Re8
{[%clk 0:00:59.8]} 32. Rcc7 {[%clk 0:00:27.1]} 32... Rxe7 {[%clk 0:00:59]} 33.
Rxe7 {[%clk 0:00:27.3]} 33... Kf6 {[%clk 0:00:59.7]} 34. d6 {[%clk 0:00:27.4]}
34... Rd8 {[%clk 0:00:58.4]} 35. Rxb7 {[%clk 0:00:26.9]} 35... Rxd6 {[%clk
0:00:58.3]} 36. Rb6 {[%clk 0:00:26.3]} 36... Ke7 {[%clk 0:00:55.2]} 37. Rb7+
{[%clk 0:00:24.2]} 37... Rd7 {[%clk 0:00:51.6]} 38. Rb6 {[%clk 0:00:21.7]} 38...
Rd6 {[%clk 0:00:51.8]} 39. f4 {[%clk 0:00:20.1]} 39... g5 {[%clk 0:00:49.3]} 40.
fxg5 {[%clk 0:00:19.1]} 40... hxg5 {[%clk 0:00:50.2]} 41. h4 {[%clk 0:00:19]}
41... Rd1+ {[%clk 0:00:46.2]} 42. Kf2 {[%clk 0:00:19.3]} 42... Rd2+ {[%clk
0:00:45.4]} 43. Kg1 {[%clk 0:00:19.8]} 43... gxh4 {[%clk 0:00:41.6]} 44. gxh4
{[%clk 0:00:19.5]} 44... Rd4 {[%clk 0:00:42.1]} 45. h5 {[%clk 0:00:18.7]} 45...
Rh4 {[%clk 0:00:40.1]} 46. h6 {[%clk 0:00:18.9]} 46... f6 {[%clk 0:00:40.5]} 47.
h7 {[%clk 0:00:17.6]} 47... Rxh7 {[%clk 0:00:38.5]} 48. Rxb5 {[%clk 0:00:15.9]}
48... axb5 {[%clk 0:00:37]} 49. a6 {[%clk 0:00:16.7]} 49... Kd6 {[%clk 0:00:36]}
50. Bb7 {[%clk 0:00:15.9]} 50... Kc7 {[%clk 0:00:35.2]} 51. Be4 {[%clk
0:00:16.1]} 51... Re7 {[%clk 0:00:33.3]} 52. a7 {[%clk 0:00:16]} 52... Re8
{[%clk 0:00:28.2]} 53. a8=Q {[%clk 0:00:16.9]} 53... Rxa8 {[%clk 0:00:28.5]} 54.
Bxa8 {[%clk 0:00:17.6]} 54... Kd6 {[%clk 0:00:25.7]} 55. Be4 {[%clk 0:00:18.5]}
55... Ke5 {[%clk 0:00:25.5]} 56. Bb1 {[%clk 0:00:19]} 56... Kf4 {[%clk
0:00:23.7]} 57. Kf2 {[%clk 0:00:19.2]} 57... b4 {[%clk 0:00:24.2]} 58. Bc2
{[%clk 0:00:19.4]} 58... Kg4 {[%clk 0:00:19.1]} 59. Ke3 {[%clk 0:00:19.4]} 59...
f5 {[%clk 0:00:18.4]} 60. Bxf5+ {[%clk 0:00:18]} 60... Kxf5 {[%clk 0:00:19.3]}
61. Kd4 {[%clk 0:00:18.2]} 61... Kf4 {[%clk 0:00:19.8]} 62. Kc4 {[%clk
0:00:18.3]} 62... Kf3 {[%clk 0:00:20.7]} 63. Kxb4 {[%clk 0:00:19.2]} 1/2-1/2

[Event "Late-Titled-Tuesday-Blitz-March-12-2024"]
[Site "Chess.com"]
[Date "2024.03.12"]
[Round "8"]
[White "lamomiajunior"]
[Black "tptagain"]
[Result "0-1"]
[WhiteElo "2783"]
[BlackElo "2971"]
[TimeControl "180+1"]
[EndTime "15:27:35 PDT"]
[Termination "tptagain won by resignation"]

1. d4 {[%clk 0:03:00.9]} 1... Nf6 {[%clk 0:02:59.4]} 2. c4 {[%clk 0:03:01]} 2...
b6 {[%clk 0:02:59.9]} 3. f3 {[%clk 0:02:59.1]} 3... d5 {[%clk 0:02:57.9]} 4.
cxd5 {[%clk 0:02:57.7]} 4... Qxd5 {[%clk 0:02:58.8]} 5. Nc3 {[%clk 0:02:57]}
5... Qb7 {[%clk 0:02:58.8]} 6. e4 {[%clk 0:02:56.4]} 6... e6 {[%clk 0:02:58.5]}
7. Bb5+ {[%clk 0:02:52.9]} 7... Bd7 {[%clk 0:02:53.6]} 8. Bxd7+ {[%clk
0:02:52.6]} 8... Nbxd7 {[%clk 0:02:53.3]} 9. Nge2 {[%clk 0:02:53.2]} 9... c5
{[%clk 0:02:48.9]} 10. d5 {[%clk 0:02:52.2]} 10... exd5 {[%clk 0:02:45.6]} 11.
exd5 {[%clk 0:02:51.7]} 11... Bd6 {[%clk 0:02:45.5]} 12. O-O {[%clk 0:02:50.8]}
12... O-O {[%clk 0:02:44.4]} 13. Ng3 {[%clk 0:02:50.5]} 13... Rfe8 {[%clk
0:02:41.9]} 14. Nge4 {[%clk 0:02:50.4]} 14... Be5 {[%clk 0:02:37.2]} 15. Kh1
{[%clk 0:02:46.7]} 15... Nxe4 {[%clk 0:02:27.1]} 16. Nxe4 {[%clk 0:02:43.5]}
16... Rad8 {[%clk 0:02:25.7]} 17. Bg5 {[%clk 0:02:30.2]} 17... f6 {[%clk
0:02:25.5]} 18. Bh4 {[%clk 0:02:29.5]} 18... Nf8 {[%clk 0:02:20.8]} 19. d6
{[%clk 0:02:17.5]} 19... Ng6 {[%clk 0:02:08.6]} 20. Qb3+ {[%clk 0:02:10.3]}
20... Qf7 {[%clk 0:02:07.7]} 21. Qxf7+ {[%clk 0:02:06.9]} 21... Kxf7 {[%clk
0:02:08.6]} 22. Bg3 {[%clk 0:02:07.5]} 22... Bxb2 {[%clk 0:01:54.5]} 23. Rad1
{[%clk 0:02:05.3]} 23... Bd4 {[%clk 0:01:51.1]} 24. a4 {[%clk 0:01:54.9]} 24...
h6 {[%clk 0:01:44.6]} 25. a5 {[%clk 0:01:51.2]} 25... f5 {[%clk 0:01:44.3]} 26.
d7 {[%clk 0:01:50.3]} 26... Re6 {[%clk 0:01:26]} 27. Nd6+ {[%clk 0:01:50.1]}
27... Kf6 {[%clk 0:01:24.5]} 28. Ne8+ {[%clk 0:01:50.5]} 28... Kf7 {[%clk
0:01:10.7]} 29. Nd6+ {[%clk 0:01:42.9]} 29... Rxd6 {[%clk 0:00:48.5]} 30. Bxd6
{[%clk 0:01:42.5]} 30... Rxd7 {[%clk 0:00:48.3]} 31. Bg3 {[%clk 0:01:17.5]}
31... b5 {[%clk 0:00:47.6]} 32. a6 {[%clk 0:01:14.5]} 32... b4 {[%clk
0:00:40.7]} 33. Bf2 {[%clk 0:01:14.9]} 33... Ne5 {[%clk 0:00:39.4]} 34. Bxd4
{[%clk 0:01:13.5]} 34... Rxd4 {[%clk 0:00:26.9]} 35. Rxd4 {[%clk 0:01:03.6]}
35... cxd4 {[%clk 0:00:27.8]} 36. Rb1 {[%clk 0:01:03.8]} 36... Nd3 {[%clk
0:00:18.6]} 37. Rb3 {[%clk 0:00:55.8]} 37... Nc5 {[%clk 0:00:10.7]} 38. Rxb4
{[%clk 0:00:55.8]} 38... d3 {[%clk 0:00:11.1]} 39. Rd4 {[%clk 0:00:55.9]} 39...
Ke6 {[%clk 0:00:10.8]} 40. f4 {[%clk 0:00:56.4]} 40... Nxa6 {[%clk 0:00:11]} 41.
Rxd3 {[%clk 0:00:56]} 41... Nc5 {[%clk 0:00:11.2]} 42. Ra3 {[%clk 0:00:53.3]}
42... a6 {[%clk 0:00:11.7]} 43. Kg1 {[%clk 0:00:53.8]} 43... Kd5 {[%clk
0:00:12.4]} 44. Kf2 {[%clk 0:00:54.4]} 44... Kc4 {[%clk 0:00:10.7]} 45. Ke3
{[%clk 0:00:54.4]} 45... Kb4 {[%clk 0:00:11.4]} 46. Ra1 {[%clk 0:00:53.2]} 46...
a5 {[%clk 0:00:11.9]} 47. Rb1+ {[%clk 0:00:46.8]} 47... Nb3 {[%clk 0:00:11.9]}
48. Kd3 {[%clk 0:00:47.1]} 48... a4 {[%clk 0:00:11.6]} 49. Kc2 {[%clk
0:00:47.1]} 49... Kc4 {[%clk 0:00:11.7]} 50. Kb2 {[%clk 0:00:45.6]} 50... Nc5
{[%clk 0:00:11.1]} 51. Rd1 {[%clk 0:00:41.4]} 51... Nd3+ {[%clk 0:00:10.9]} 52.
Ka3 {[%clk 0:00:41.9]} 52... Nxf4 {[%clk 0:00:11.2]} 53. Kxa4 {[%clk 0:00:41.6]}
53... g5 {[%clk 0:00:05.1]} 54. g3 {[%clk 0:00:39.9]} 54... Nd3 {[%clk
0:00:05.7]} 55. Ka5 {[%clk 0:00:36.5]} 55... f4 {[%clk 0:00:06]} 56. gxf4 {[%clk
0:00:34.5]} 56... gxf4 {[%clk 0:00:06.9]} 57. Kb6 {[%clk 0:00:35.1]} 57... f3
{[%clk 0:00:05.9]} 58. Kc6 {[%clk 0:00:35.5]} 58... Kd4 {[%clk 0:00:05.8]} 59.
Kd6 {[%clk 0:00:36.1]} 59... f2 {[%clk 0:00:05.9]} 60. Ke6 {[%clk 0:00:36.1]}
60... Ke3 {[%clk 0:00:05.1]} 61. Kf6 {[%clk 0:00:36.4]} 61... Ne1 {[%clk
0:00:04.9]} 0-1

[Event "Late-Titled-Tuesday-Blitz-March-12-2024"]
[Site "Chess.com"]
[Date "2024.03.12"]
[Round "8"]
[White "DryCounty"]
[Black "Zohid6"]
[Result "0-1"]
[WhiteElo "2660"]
[BlackElo "2894"]
[TimeControl "180+1"]
[EndTime "15:27:35 PDT"]
[Termination "Zohid6 won on time"]

1. e4 {[%clk 0:03:00.9]} 1... e5 {[%clk 0:02:58.7]} 2. Nf3 {[%clk 0:03:00.1]}
2... Nf6 {[%clk 0:02:58.6]} 3. Nxe5 {[%clk 0:02:59.5]} 3... d6 {[%clk
0:02:58.7]} 4. Nf3 {[%clk 0:02:59.7]} 4... Nxe4 {[%clk 0:02:58.8]} 5. d3 {[%clk
0:03:00.2]} 5... Nf6 {[%clk 0:02:58.7]} 6. d4 {[%clk 0:03:00.6]} 6... g6 {[%clk
0:02:59.2]} 7. c4 {[%clk 0:02:59.4]} 7... Bg7 {[%clk 0:02:59.4]} 8. Nc3 {[%clk
0:02:58.8]} 8... O-O {[%clk 0:02:59.3]} 9. Be2 {[%clk 0:02:59.4]} 9... c5 {[%clk
0:02:59.1]} 10. d5 {[%clk 0:02:57.2]} 10... Bg4 {[%clk 0:02:54.4]} 11. O-O
{[%clk 0:02:57.5]} 11... Re8 {[%clk 0:02:54.4]} 12. h3 {[%clk 0:02:56.1]} 12...
Bxf3 {[%clk 0:02:54.2]} 13. Bxf3 {[%clk 0:02:57]} 13... Nbd7 {[%clk 0:02:54.6]}
14. Bf4 {[%clk 0:02:39.6]} 14... Ne5 {[%clk 0:02:52.7]} 15. Be2 {[%clk
0:02:39.4]} 15... a6 {[%clk 0:02:46.4]} 16. a4 {[%clk 0:02:32.7]} 16... Qb6
{[%clk 0:02:43.3]} 17. Qc2 {[%clk 0:02:26.5]} 17... Re7 {[%clk 0:02:41.5]} 18.
a5 {[%clk 0:02:25.6]} 18... Qc7 {[%clk 0:02:40]} 19. Bg5 {[%clk 0:02:21.5]}
19... h6 {[%clk 0:02:38.6]} 20. Bf4 {[%clk 0:02:18.9]} 20... Rae8 {[%clk
0:02:37.8]} 21. Rfd1 {[%clk 0:02:05.9]} 21... Qd7 {[%clk 0:02:24]} 22. Bf1
{[%clk 0:02:01.8]} 22... g5 {[%clk 0:02:22.1]} 23. Bh2 {[%clk 0:01:50.2]} 23...
Nh5 {[%clk 0:02:18.1]} 24. Kh1 {[%clk 0:01:32.1]} 24... f5 {[%clk 0:02:14.2]}
25. Re1 {[%clk 0:01:29.8]} 25... Nf4 {[%clk 0:02:04.8]} 26. Bxf4 {[%clk
0:01:15.6]} 26... gxf4 {[%clk 0:02:05.7]} 27. Bd3 {[%clk 0:01:12.7]} 27... Rf8
{[%clk 0:01:40.8]} 28. Rad1 {[%clk 0:01:04]} 28... f3 {[%clk 0:01:32.7]} 29. g3
{[%clk 0:00:53.3]} 29... f4 {[%clk 0:01:31.9]} 30. g4 {[%clk 0:00:49.9]} 30...
Nxg4 {[%clk 0:01:30.7]} 31. Re6 {[%clk 0:00:12.6]} 31... Rxe6 {[%clk 0:01:14.8]}
32. dxe6 {[%clk 0:00:12.4]} 32... Qxe6 {[%clk 0:01:15.2]} 33. Be4 {[%clk
0:00:06.5]} 33... Kh8 {[%clk 0:01:07.3]} 34. Bxf3 {[%clk 0:00:06.6]} 34... Ne5
{[%clk 0:01:07]} 35. Bg2 {[%clk 0:00:03.7]} 35... f3 {[%clk 0:00:55]} 36. Bf1
{[%clk 0:00:03.8]} 36... Nxc4 {[%clk 0:00:55.2]} 37. Ne4 {[%clk 0:00:03]} 37...
Rf4 {[%clk 0:00:39.4]} 38. Ng3 {[%clk 0:00:02.2]} 38... Ne5 {[%clk 0:00:37.5]}
39. Kh2 {[%clk 0:00:01.3]} 39... Bf8 {[%clk 0:00:29.9]} 40. Qd2 {[%clk
0:00:01.7]} 40... Rh4 {[%clk 0:00:29.8]} 41. Qd5 {[%clk 0:00:01.6]} 41... Qxd5
{[%clk 0:00:26.2]} 42. Rxd5 {[%clk 0:00:02.5]} 42... Rb4 {[%clk 0:00:25.8]} 43.
Rd2 {[%clk 0:00:01.9]} 43... Kg7 {[%clk 0:00:23.3]} 44. Nf5+ {[%clk 0:00:02.1]}
44... Kf7 {[%clk 0:00:23.7]} 45. Nxd6+ {[%clk 0:00:02.8]} 45... Bxd6 {[%clk
0:00:24]} 46. Rxd6 {[%clk 0:00:03.3]} 46... Rxb2 {[%clk 0:00:24.6]} 47. Kg3
{[%clk 0:00:04]} 47... h5 {[%clk 0:00:21.5]} 48. Rd5 {[%clk 0:00:03.2]} 48...
Ke6 {[%clk 0:00:20.3]} 49. Rxc5 {[%clk 0:00:03.7]} 49... h4+ {[%clk 0:00:20.1]}
50. Kxh4 {[%clk 0:00:03.4]} 50... Rxf2 {[%clk 0:00:19.6]} 51. Bc4+ {[%clk
0:00:03]} 51... Kf6 {[%clk 0:00:14.9]} 52. Bd5 {[%clk 0:00:02.7]} 52... Rg2
{[%clk 0:00:15.2]} 53. Rc7 {[%clk 0:00:01.6]} 53... Rg5 {[%clk 0:00:10.1]} 0-1

[Event "Late-Titled-Tuesday-Blitz-March-12-2024"]
[Site "Chess.com"]
[Date "2024.03.12"]
[Round "8"]
[White "ThaBarWa"]
[Black "santosalberto1987"]
[Result "0-1"]
[WhiteElo "2359"]
[BlackElo "2531"]
[TimeControl "180+1"]
[EndTime "15:27:38 PDT"]
[Termination "santosalberto1987 won on time"]

1. d4 {[%clk 0:03:00.9]} 1... Nf6 {[%clk 0:03:00.1]} 2. c4 {[%clk 0:03:00.9]}
2... d6 {[%clk 0:03:00.3]} 3. Nc3 {[%clk 0:02:57.8]} 3... e5 {[%clk 0:03:00.2]}
4. d5 {[%clk 0:02:51.5]} 4... e4 {[%clk 0:02:59.4]} 5. Bg5 {[%clk 0:02:49.3]}
5... Bf5 {[%clk 0:02:57.7]} 6. Qb3 {[%clk 0:02:45.8]} 6... b6 {[%clk 0:02:56.6]}
7. e3 {[%clk 0:02:45.4]} 7... Nbd7 {[%clk 0:02:54.7]} 8. Nge2 {[%clk 0:02:41.1]}
8... h6 {[%clk 0:02:54.4]} 9. Bxf6 {[%clk 0:02:36.9]} 9... Nxf6 {[%clk
0:02:54.1]} 10. c5 {[%clk 0:02:30.2]} 10... dxc5 {[%clk 0:02:50.8]} 11. Ng3
{[%clk 0:02:29.2]} 11... Bh7 {[%clk 0:02:50.5]} 12. Bb5+ {[%clk 0:02:29.1]}
12... Nd7 {[%clk 0:02:49]} 13. Ncxe4 {[%clk 0:02:19.4]} 13... Bd6 {[%clk
0:02:49]} 14. Nxd6+ {[%clk 0:01:57]} 14... cxd6 {[%clk 0:02:48.8]} 15. Qc3
{[%clk 0:01:57.9]} 15... O-O {[%clk 0:02:46.9]} 16. Nh5 {[%clk 0:01:58.5]} 16...
Ne5 {[%clk 0:02:35.6]} 17. O-O {[%clk 0:01:56.6]} 17... Qh4 {[%clk 0:02:31.3]}
18. Be2 {[%clk 0:01:47.3]} 18... Bg6 {[%clk 0:02:28.7]} 19. Nf4 {[%clk
0:01:47.1]} 19... Bh7 {[%clk 0:02:23.8]} 20. Nh5 {[%clk 0:01:46.5]} 20... f6
{[%clk 0:01:56.9]} 21. g3 {[%clk 0:01:44.1]} 21... Qh3 {[%clk 0:01:53.6]} 22.
Nf4 {[%clk 0:01:44.1]} 22... Qd7 {[%clk 0:01:49.6]} 23. Ne6 {[%clk 0:01:43.7]}
23... Rf7 {[%clk 0:01:47.7]} 24. f4 {[%clk 0:01:43.7]} 24... Ng6 {[%clk
0:01:46.4]} 25. e4 {[%clk 0:01:40]} 25... f5 {[%clk 0:01:41]} 26. exf5 {[%clk
0:01:04.6]} 26... Rxf5 {[%clk 0:01:40.6]} 27. Rad1 {[%clk 0:00:58.6]} 27... Rf7
{[%clk 0:01:24.4]} 28. Bg4 {[%clk 0:00:43.9]} 28... Qa4 {[%clk 0:01:21.1]} 29.
Qb3 {[%clk 0:00:31.6]} 29... Qxb3 {[%clk 0:01:19.8]} 30. axb3 {[%clk 0:00:32.5]}
30... Nf8 {[%clk 0:01:11]} 31. f5 {[%clk 0:00:29.2]} 31... Nd7 {[%clk
0:01:07.2]} 32. Bh3 {[%clk 0:00:17.5]} 32... Ne5 {[%clk 0:01:04.8]} 33. g4
{[%clk 0:00:14.7]} 33... Kh8 {[%clk 0:00:59.5]} 34. Rfe1 {[%clk 0:00:14.8]}
34... Bg8 {[%clk 0:00:59.2]} 35. Kg2 {[%clk 0:00:13.5]} 35... Rf6 {[%clk
0:00:58.3]} 36. Kg3 {[%clk 0:00:11.7]} 36... a5 {[%clk 0:00:52.5]} 37. Bg2
{[%clk 0:00:06.5]} 37... g6 {[%clk 0:00:48.3]} 38. Rxe5 {[%clk 0:00:03.9]} 38...
dxe5 {[%clk 0:00:47.9]} 39. Be4 {[%clk 0:00:04.6]} 39... gxf5 {[%clk 0:00:44.8]}
40. gxf5 {[%clk 0:00:05.5]} 40... Bxe6 {[%clk 0:00:42.5]} 41. dxe6 {[%clk
0:00:06.4]} 41... Rg8+ {[%clk 0:00:40.5]} 42. Kf3 {[%clk 0:00:06.3]} 42... Rgf8
{[%clk 0:00:36.5]} 43. Rd5 {[%clk 0:00:04.9]} 43... Rxe6 {[%clk 0:00:35.7]} 44.
Ke3 {[%clk 0:00:04.6]} 44... Re7 {[%clk 0:00:27.1]} 45. Rd6 {[%clk 0:00:05]}
45... Kg7 {[%clk 0:00:27.6]} 46. Rxb6 {[%clk 0:00:05.3]} 46... Rf6 {[%clk
0:00:27.8]} 47. Rb8 {[%clk 0:00:05.7]} 47... Rd7 {[%clk 0:00:24.9]} 48. Rb5
{[%clk 0:00:05.8]} 48... Rd4 {[%clk 0:00:23.9]} 49. Rxc5 {[%clk 0:00:05.7]}
49... Rb4 {[%clk 0:00:24.4]} 50. Rxe5 {[%clk 0:00:05.2]} 50... Rxb3+ {[%clk
0:00:24.3]} 51. Kf4 {[%clk 0:00:05.8]} 51... Rxb2 {[%clk 0:00:24.4]} 52. Rxa5
{[%clk 0:00:06.3]} 52... Rxh2 {[%clk 0:00:23.8]} 53. Ra7+ {[%clk 0:00:06.2]}
53... Rf7 {[%clk 0:00:24]} 54. Ra6 {[%clk 0:00:05.9]} 54... Rf2+ {[%clk
0:00:23.3]} 55. Ke5 {[%clk 0:00:06.3]} 55... Re7+ {[%clk 0:00:21.6]} 56. Kd5
{[%clk 0:00:02.8]} 56... Rd2+ {[%clk 0:00:21.3]} 0-1